fUST/lending_fUST_20240626
["ID","MTS","AMOUNT","RATE_DAILY","PERIOD"]
[330428821,1719385832349,-1999.7638427,0.00016,2]
[330428823,1719385832361,-512.64191216,0.00016,2]
[330428825,1719385832373,-516.20767634,0.00016,2]
[330428828,1719385832385,-3929.39279019,0.00016,2]
[330428830,1719385832398,-2028.89952765,0.00016,2]
[330428832,1719385832411,-1230.73940947,0.00016,2]
[330428834,1719385832423,-1279.50783988,0.00016,2]
[330428835,1719385832433,-1000.0,0.00016,5]
[330428836,1719385832443,-876.0,0.00016116,2]
[330428837,1719385832452,-205.8057007,0.000164,2]
[330428838,1719385832465,-153.0,0.000164,2]
[330428840,1719385832475,-205.8057007,0.000164,2]
[330428842,1719385832485,-165.0770232,0.000164,2]
[330428844,1719385832495,-153.0,0.000164,2]
[330428846,1719385832504,-205.3347715,0.000164,2]
[330428848,1719385832514,-11469.09177,0.0001643,2]
[330428849,1719385832523,-1000.0,0.00016437,2]
[330428851,1719385832533,-983.22,0.00016438,2]
[330428853,1719385832543,-943.49,0.00016438,2]
[330428855,1719385832553,-7133.69,0.00016438,2]
[330428857,1719385832562,-500.0,0.00016438,2]
[330428859,1719385832572,-178.82498227,0.00016438,2]
[330428861,1719385832581,-611.49362955,0.00016438,2]
[330428862,1719385832590,-673.33,0.00016438,2]
[330428863,1719385832600,-500.0,0.00016438,2]
[330428864,1719385832610,-505.46648141,0.00016438,2]
[330428865,1719385832620,-501.2018442,0.00016438,2]
[330428866,1719385832630,-500.0,0.00016438,2]
[330428867,1719385832640,-500.0,0.00016438,2]
[330428868,1719385832655,-500.0,0.00016438,2]
[330428870,1719385832665,-500.0,0.00016438,2]
[330428872,1719385832675,-497.87520772,0.00016438,2]
[330428874,1719385832684,-502.2490248,0.00016438,2]
[330428875,1719385832695,-507.22112044,0.00016438,2]
[330428876,1719385832704,-500.0,0.00016438,2]
[330428877,1719385832719,-504.15991268,0.00016438,2]
[330428879,1719385832729,-501.78898202,0.00016438,2]
[330428881,1719385832742,-500.0,0.00016438,2]
[330428883,1719385832752,-1021.99,0.00016438,2]
[330428884,1719385832762,-500.0,0.00016438,2]
[330428885,1719385832772,-500.0,0.00016438,2]
[330428886,1719385832782,-1319.29,0.00016438,2]
[330428887,1719385832791,-819.14,0.00016438,2]
[330428888,1719385832800,-645.57,0.00016438,2]
[330428889,1719385832810,-846.56,0.00016438,2]
[330428890,1719385832819,-500.0,0.00016438,2]
[330428891,1719385832830,-500.0,0.00016438,2]
[330428892,1719385832840,-500.0,0.00016438,2]
[330428893,1719385832849,-723.4,0.00016438,2]
[330428894,1719385832859,-500.0,0.00016438,2]
[330428895,1719385832868,-500.0,0.00016438,2]
[330428896,1719385832878,-508.30122305,0.00016438,2]
[330428897,1719385832888,-500.0,0.00016438,2]
[330428898,1719385832898,-500.0,0.00016438,2]
[330428899,1719385832908,-500.0,0.00016438,2]
[330428900,1719385832917,-500.0,0.00016438,2]
[330428901,1719385832926,-500.0,0.00016438,2]
[330428902,1719385832936,-500.0,0.00016438,2]
[330428903,1719385832945,-500.0,0.00016438,2]
[330428904,1719385832955,-500.0,0.00016438,2]
[330428905,1719385832967,-500.0,0.00016438,2]
[330428906,1719385832977,-555.32,0.00016438,2]
[330428907,1719385832987,-500.0,0.00016438,2]
[330428908,1719385832997,-503.15446519,0.00016438,2]
[330428909,1719385833007,-500.0,0.00016438,2]
[330428910,1719385833016,-500.0,0.00016438,2]
[330428911,1719385833026,-1063.41,0.00016438,2]
[330428912,1719385833035,-1083.09,0.00016438,2]
[330428913,1719385833045,-500.0,0.00016438,2]
[330428914,1719385833054,-504.44613129,0.00016438,2]
[330428915,1719385833064,-500.0,0.00016438,2]
[330428916,1719385833073,-521.74041689,0.00016438,2]
[330428917,1719385833082,-500.0,0.00016438,2]
[330428918,1719385833092,-500.0,0.00016438,2]
[330428919,1719385833101,-500.0,0.00016438,2]
[330428920,1719385833110,-505.83457197,0.00016438,2]
[330428921,1719385833119,-500.0,0.00016438,2]
[330428922,1719385833129,-548.8,0.00016438,2]
[330428923,1719385833138,-503.64001547,0.00016438,2]
[330428924,1719385833147,-1506.0,0.00016438,2]
[330428925,1719385833157,-1418.97,0.00016438,2]
[330428926,1719385833166,-3812.78,0.00016438,2]
[330428927,1719385833175,-500.0,0.00016438,2]
[330428928,1719385833184,-989.92,0.00016438,2]
[330428929,1719385833194,-502.50656956,0.00016438,2]
[330428930,1719385833203,-182.37735687,0.00016438,2]
[330428931,1719385833214,-500.0,0.00016438,2]
[330428932,1719385833223,-575.14690232,0.00016438,2]
[330428933,1719385833232,-500.0,0.00016438,2]
[330428934,1719385833241,-500.0,0.00016438,2]
[330428935,1719385833250,-504.5532611,0.00016438,2]
[330428936,1719385833259,-500.0,0.00016438,2]
[330428937,1719385833268,-500.0,0.00016438,2]
[330428938,1719385833278,-500.0,0.00016438,2]
[330428939,1719385833287,-500.0,0.00016438,2]
[330428940,1719385833296,-500.0,0.00016438,2]
[330428941,1719385833305,-500.0,0.00016438,2]
[330428942,1719385833315,-640.54099339,0.00016438,2]
[330428943,1719385833324,-500.0,0.00016438,2]
[330428944,1719385833334,-344.40034551,0.00016438,2]
[330428945,1719385833344,-1130.96,0.00016438,2]
[330428946,1719385833353,-500.0,0.00016438,2]
[330428947,1719385833363,-500.0,0.00016438,2]
[330428948,1719385833372,-500.0,0.00016438,2]
[330428949,1719385833381,-2958.6,0.00016438,2]
[330428950,1719385833391,-579.02,0.00016438,2]
[330428951,1719385833400,-158.57005552,0.00016438,2]
[330428957,1719385838703,-345.28840683,0.00016438,2]
[330428958,1719385838713,-1056.78,0.00016438,2]
[330428959,1719385838725,-168.85723655,0.00016438,2]
[330428960,1719385838741,-331.14276345,0.00016438,2]
[330428961,1719385838751,-500.0,0.00016438,2]
[330428962,1719385838760,-841.56,0.00016438,2]
[330428963,1719385838769,-447.6491903,0.00016438,2]
[330428964,1719385838781,-52.3508097,0.00016438,2]
[330428965,1719385838791,-500.0,0.00016438,2]
[330428966,1719385838800,-712.7,0.00016438,2]
[330428967,1719385838809,-500.0,0.00016438,2]
[330428968,1719385838819,-573.31,0.00016438,2]
[330428969,1719385838828,-448.44297252,0.00016438,2]
[330428997,1719385840524,-51.55702748,0.00016438,2]
[330428998,1719385840534,-500.0,0.00016438,2]
[330428999,1719385840544,-500.0,0.00016438,2]
[330429000,1719385840554,-500.0,0.00016438,2]
[330429001,1719385840564,-475.47000235,0.00016438,2]
[330429002,1719385840573,-856.3,0.00016438,2]
[330429003,1719385840583,-500.0,0.00016438,2]
[330429004,1719385840592,-500.0,0.00016438,2]
[330429005,1719385840602,-500.0,0.00016438,2]
[330429006,1719385840612,-500.0,0.00016438,2]
[330429007,1719385840621,-500.0,0.00016438,2]
[330429008,1719385840631,-500.0,0.00016438,2]
[330429009,1719385840641,-651.3,0.00016438,2]
[330429010,1719385840653,-500.0,0.00016438,2]
[330429011,1719385840664,-500.0,0.00016438,2]
[330429012,1719385840674,-82.08614701,0.00016438,2]
[330429013,1719385840687,-417.91385299,0.00016438,2]
[330429014,1719385840699,-500.0,0.00016438,2]
[330429015,1719385840708,-256.01243091,0.00016438,2]
[330429116,1719385846540,-243.98756909,0.00016438,2]
[330429118,1719385846549,-500.0,0.00016438,2]
[330429120,1719385846559,-1629.28,0.00016438,2]
[330429122,1719385846568,-500.0,0.00016438,2]
[330429123,1719385846577,-1758.94,0.00016438,2]
[330429126,1719385846586,-25744.02787478,0.00016438,2]
[330429203,1719386319194,1530.0,0.00014,2]
[330429205,1719386429851,2129.2320514,9.999e-05,2]
[330429206,1719386546110,516.79936011,9.999e-05,2]
[330429207,1719386590265,402.74715547,9.999e-05,2]
[330429208,1719386613788,2115.78838011,9.999e-05,2]
[330429209,1719386646761,402.54347041,0.0001212,2]
[330429210,1719386652016,2118.15131963,0.0001212,2]
[330429486,1719387040730,-620.00001777,0.00015996,2]
[330429488,1719387040740,-876.0,0.00016248,2]
[330429490,1719387040751,-1356.76,0.000163,2]
[330429492,1719387040761,-371.23998223,0.00016338,2]
[330429494,1719387040775,-374.96059709,0.00016338,2]
[330429496,1719387040784,-1000.0,0.00016437,2]
[330429498,1719387040794,-2650.14,0.00016438,2]
[330429500,1719387040804,-2650.14,0.00016438,2]
[330429502,1719387040814,-2650.14,0.00016438,2]
[330429504,1719387040824,-971.32,0.00016438,2]
[330429506,1719387040834,-500.0,0.00016438,2]
[330429508,1719387040843,-1587.53,0.00016438,2]
[330429510,1719387040854,-500.0,0.00016438,2]
[330429512,1719387040863,-890.74,0.00016438,2]
[330429514,1719387040874,-500.0,0.00016438,2]
[330429516,1719387040884,-548.69,0.00016438,2]
[330429518,1719387040893,-500.0,0.00016438,2]
[330429520,1719387040903,-500.0,0.00016438,2]
[330429522,1719387040913,-224.98433147,0.00016438,2]
[330429524,1719387040923,-500.0,0.00016438,2]
[330429526,1719387040932,-500.0,0.00016438,2]
[330429528,1719387040942,-500.0,0.00016438,2]
[330429530,1719387040952,-500.0,0.00016438,2]
[330429532,1719387040963,-500.0,0.00016438,2]
[330429534,1719387040975,-500.0,0.00016438,2]
[330429536,1719387040986,-500.0,0.00016438,2]
[330429538,1719387040998,-1037.97,0.00016438,2]
[330429540,1719387041008,-525.94,0.00016438,2]
[330429542,1719387041018,-500.0,0.00016438,2]
[330429544,1719387041028,-500.0,0.00016438,2]
[330429546,1719387041038,-500.0,0.00016438,2]
[330429548,1719387041048,-500.0,0.00016438,2]
[330429550,1719387041058,-1234.18,0.00016438,2]
[330429552,1719387041067,-204.97787992,0.00016438,2]
[330429554,1719387041079,-639.31273517,0.00016438,2]
[330429556,1719387041088,-310.92982278,0.00016438,2]
[330429558,1719387041101,-189.07017722,0.00016438,2]
[330429560,1719387041111,-230.77446275,0.00016438,2]
[330429628,1719387046784,-324.11553725,0.00016438,2]
[330429629,1719387046794,-500.0,0.00016438,2]
[330429630,1719387046804,-500.0,0.00016438,2]
[330429631,1719387046813,-806.49,0.00016438,2]
[330429632,1719387046823,-128.65962001,0.00016438,2]
[330429633,1719387120568,159.35965211,9.999e-05,2]
[330429634,1719387123450,154.85288975,0.0001,2]
[330429635,1719387126779,990.65106447,9.999e-05,2]
[330429636,1719387137597,401.65252924,9.999e-05,2]
[330429637,1719387143870,238.42905543,9.999e-05,2]
[330429638,1719387149364,10226.31312058,0.0001212,2]
[330429718,1719388232356,-1636.98463601,0.0001459,2]
[330429720,1719388232366,-842.74811027,0.00014591,2]
[330429722,1719388232377,-1487.2316115,0.00014691,2]
[330429724,1719388232386,-2115.26284951,0.00014691,2]
[330429726,1719388232396,-1470.12586148,0.00015,2]
[330429728,1719388232405,-2417.34559194,0.00015,2]
[330429730,1719388232415,-876.0,0.00016255,2]
[330429732,1719388232424,-184.81513673,0.00016338,2]
[330429734,1719388232434,-1000.0,0.00016437,2]
[330429736,1719388232443,-11719.7,0.00016438,2]
[330429738,1719388232454,-519.66,0.00016438,2]
[330429740,1719388232462,-165.66581717,0.00016438,2]
[330429742,1719388232471,-500.0,0.00016438,2]
[330429744,1719388232480,-500.0,0.00016438,2]
[330429746,1719388232489,-473.30923667,0.00016438,2]
[330429748,1719388232498,-500.0,0.00016438,2]
[330429750,1719388232507,-500.0,0.00016438,2]
[330429752,1719388232516,-500.0,0.00016438,2]
[330429754,1719388232525,-500.0,0.00016438,2]
[330429756,1719388232535,-500.0,0.00016438,2]
[330429758,1719388232545,-667.49,0.00016438,2]
[330429760,1719388232554,-554.42533717,0.00016438,2]
[330429762,1719388232563,-1051.29,0.00016438,2]
[330429764,1719388232573,-500.0,0.00016438,2]
[330429766,1719388232582,-618.67,0.00016438,2]
[330429768,1719388232592,-503.17256602,0.00016438,2]
[330429770,1719388232602,-502.91427383,0.00016438,2]
[330429772,1719388232611,-509.52089382,0.00016438,2]
[330429774,1719388232620,-500.0,0.00016438,2]
[330429775,1719388232630,-500.0,0.00016438,2]
[330429777,1719388232639,-501.61993547,0.00016438,2]
[330429779,1719388232649,-693.26,0.00016438,2]
[330429780,1719388232659,-500.0,0.00016438,2]
[330429781,1719388232669,-500.0,0.00016438,2]
[330429783,1719388232679,-551.31300515,0.00016438,2]
[330429784,1719388232689,-3051.83,0.00016438,2]
[330429786,1719388232699,-844.96,0.00016438,2]
[330429788,1719388232716,-500.0,0.00016438,2]
[330429790,1719388232725,-500.0,0.00016438,2]
[330429792,1719388232734,-500.0,0.00016438,2]
[330429794,1719388232743,-500.0,0.00016438,2]
[330429796,1719388232753,-772.45,0.00016438,2]
[330429798,1719388232764,-500.0,0.00016438,2]
[330429800,1719388232774,-500.0,0.00016438,2]
[330429802,1719388232783,-1225.88,0.00016438,2]
[330429804,1719388232792,-645.27,0.00016438,2]
[330429806,1719388232802,-500.0,0.00016438,2]
[330429808,1719388232812,-500.0,0.00016438,2]
[330429810,1719388232821,-500.0,0.00016438,2]
[330429812,1719388232831,-1264.32,0.00016438,2]
[330429814,1719388232840,-7964.01,0.00016438,2]
[330429816,1719388232850,-500.0,0.00016438,2]
[330429818,1719388232859,-293.11982431,0.00016438,2]
[330429820,1719388232869,-789.78,0.00016438,2]
[330429822,1719388232878,-1359.84,0.00016438,2]
[330429825,1719388232888,-532.19,0.00016438,2]
[330429827,1719388232898,-500.0,0.00016438,2]
[330429828,1719388232907,-1019.1,0.00016438,2]
[330429831,1719388232917,-500.0,0.00016438,2]
[330429832,1719388232926,-1253.77,0.00016438,2]
[330429834,1719388232936,-500.0,0.00016438,2]
[330429837,1719388232946,-500.0,0.00016438,2]
[330429839,1719388232959,-500.0,0.00016438,2]
[330429841,1719388232968,-500.0,0.00016438,2]
[330429843,1719388232978,-500.0,0.00016438,2]
[330429845,1719388232987,-500.0,0.00016438,2]
[330429847,1719388232996,-500.0,0.00016438,2]
[330429849,1719388233007,-1464.09,0.00016438,2]
[330429851,1719388233016,-500.0,0.00016438,2]
[330429853,1719388233025,-500.0,0.00016438,2]
[330429854,1719388233034,-909.15,0.00016438,2]
[330429857,1719388233044,-500.0,0.00016438,2]
[330429859,1719388233054,-500.0,0.00016438,2]
[330429860,1719388233063,-500.0,0.00016438,2]
[330429862,1719388233072,-500.0,0.00016438,2]
[330429864,1719388233081,-2856.16,0.00016438,2]
[330429866,1719388233091,-500.0,0.00016438,2]
[330429869,1719388233101,-1521.38,0.00016438,2]
[330429871,1719388233111,-1083.84,0.00016438,2]
[330429873,1719388233120,-942.25,0.00016438,2]
[330429875,1719388233130,-500.0,0.00016438,2]
[330429877,1719388233140,-500.0,0.00016438,2]
[330429879,1719388233149,-500.0,0.00016438,2]
[330429881,1719388233158,-500.0,0.00016438,2]
[330429883,1719388233167,-853.62,0.00016438,2]
[330429884,1719388233176,-1012.75,0.00016438,2]
[330429886,1719388233185,-500.0,0.00016438,2]
[330429888,1719388233194,-683.0,0.00016438,2]
[330429890,1719388233206,-576.74897566,0.00016438,2]
[330429892,1719388233218,-500.0,0.00016438,2]
[330429894,1719388233227,-500.0,0.00016438,2]
[330429896,1719388233236,-549.43,0.00016438,2]
[330429898,1719388233245,-280.6651676,0.00016438,2]
[330429901,1719388233261,-219.3348324,0.00016438,2]
[330429903,1719388233271,-500.0,0.00016438,2]
[330429905,1719388233280,-193.91119497,0.00016438,2]
[330430097,1719388238416,-1153.9068946,0.00015653,2]
[330430098,1719388238426,-2955.25638882,0.00016438,2]
[330430110,1719388240583,-304.71368244,0.00016438,2]
[330430131,1719388243683,-505.51884002,0.00016438,2]
[330430132,1719388243743,-47901.73823461,0.00016438,2]
[330430133,1719388243753,-306.08880503,0.00016438,2]
[330430134,1719388243762,-500.0,0.00016438,2]
[330430135,1719388243771,-500.0,0.00016438,2]
[330430136,1719388243781,-904.17,0.00016438,2]
[330430137,1719388243790,-500.0,0.00016438,2]
[330430138,1719388243801,-1561.39,0.00016438,2]
[330430139,1719388243810,-2509.24,0.00016438,2]
[330430140,1719388243820,-201.93878663,0.00016438,2]
[330430141,1719388243829,-500.0,0.00016438,2]
[330430142,1719388243839,-597.0,0.00016438,2]
[330430143,1719388243848,-500.0,0.00016438,2]
[330430144,1719388243858,-1685.65,0.00016438,2]
[330430145,1719388243868,-500.0,0.00016438,2]
[330430146,1719388243877,-500.0,0.00016438,2]
[330430147,1719388243887,-994.72,0.00016438,2]
[330430149,1719388243896,-525.83,0.00016438,2]
[330430151,1719388243905,-500.0,0.00016438,2]
[330430152,1719388243915,-2318.87,0.00016438,2]
[330430153,1719388243924,-2222.25,0.00016438,2]
[330430154,1719388243934,-2222.25,0.00016438,2]
[330430155,1719388243943,-2222.25,0.00016438,2]
[330430156,1719388243953,-500.0,0.00016438,2]
[330430157,1719388243964,-2222.25,0.00016438,2]
[330430158,1719388243974,-2222.25,0.00016438,2]
[330430159,1719388243983,-500.0,0.00016438,2]
[330430160,1719388243994,-504.02,0.00016438,2]
[330430161,1719388244003,-500.0,0.00016438,2]
[330430162,1719388244012,-151.0,0.00016438,2]
[330430163,1719388244022,-262.894503,0.00016438,2]
[330430164,1719388244031,-5353.28,0.00016438,2]
[330430165,1719388244040,-500.0,0.00016438,2]
[330430166,1719388244050,-2913.87,0.00016438,2]
[330430167,1719388244060,-930.85,0.00016438,2]
[330430168,1719388244069,-13970.14,0.00016438,2]
[330430169,1719388244078,-3653.91,0.00016438,2]
[330430170,1719388244087,-519.71034641,0.00016438,2]
[330430171,1719388244097,-5371.88,0.00016438,2]
[330430172,1719388244107,-500.0,0.00016438,2]
[330430173,1719388244116,-153.219801,0.00016438,2]
[330430174,1719388244126,-500.0,0.00016438,2]
[330430175,1719388244136,-446.4725466,0.00016438,2]
[330430182,1719388246699,-53.5274534,0.00016438,2]
[330430183,1719388246709,-500.0,0.00016438,2]
[330430184,1719388246720,-500.0,0.00016438,2]
[330430185,1719388246729,-667.13,0.00016438,2]
[330430186,1719388246738,-4262.75,0.00016438,2]
[330430187,1719388246747,-500.0,0.00016438,2]
[330430188,1719388246756,-772.89,0.00016438,2]
[330430189,1719388246765,-500.0,0.00016438,2]
[330430190,1719388246775,-500.0,0.00016438,2]
[330430191,1719388246784,-500.0,0.00016438,2]
[330430192,1719388246793,-1658.79,0.00016438,2]
[330430193,1719388246802,-2263.95,0.00016438,2]
[330430194,1719388246811,-652.85,0.00016438,2]
[330430195,1719388246820,-2409.34,0.00016438,2]
[330430196,1719388246829,-500.0,0.00016438,2]
[330430197,1719388246838,-500.0,0.00016438,2]
[330430198,1719388246847,-531.77,0.00016438,2]
[330430199,1719388246857,-239.66454239,0.00016438,2]
[330430200,1719388246866,-1254.65,0.00016438,2]
[330430201,1719388246875,-500.0,0.00016438,2]
[330430202,1719388246884,-732.87563656,0.00016438,2]
[330430208,1719388272475,150.84915085,0.00020878,30]
[330430209,1719388272518,150.84915085,0.00020461,120]
[330430218,1719388816345,150.8642222,0.00020655,30]
[330430219,1719388816476,150.8642222,0.00020242,120]
[330430220,1719388840771,565.7746747,9.999e-05,2]
[330430221,1719388844524,401.65252924,9.999e-05,2]
[330430223,1719388868194,157.19006853,9.999e-05,2]
[330430225,1719388970076,286.39912426,9.999e-05,2]
[330430227,1719388977325,457.45943987,9.999e-05,2]
[330430270,1719389432610,-2825.49865465,0.00015,2]
[330430271,1719389432619,-876.0,0.00015735,2]
[330430273,1719389432628,-620.00000088,0.00015956,2]
[330430274,1719389432638,-1000.0,0.00016,5]
[330430276,1719389432646,-153.0,0.000164,2]
[330430278,1719389432655,-153.0,0.000164,2]
[330430280,1719389432664,-308.2474128,0.000164,2]
[330430282,1719389432673,-154.8593361,0.000164,2]
[330430284,1719389432686,-153.0,0.000164,2]
[330430285,1719389432695,-306.0,0.000164,2]
[330430286,1719389432704,-205.8057007,0.000164,2]
[330430288,1719389432713,-153.0,0.000164,2]
[330430291,1719389432723,-153.0,0.000164,2]
[330430293,1719389432733,-153.0,0.000164,2]
[330430295,1719389432741,-1000.0,0.00016437,2]
[330430296,1719389432750,-500.0,0.00016438,2]
[330430297,1719389432761,-979.41,0.00016438,2]
[330430298,1719389432770,-776.82,0.00016438,2]
[330430299,1719389432779,-618.39,0.00016438,2]
[330430300,1719389432788,-500.0,0.00016438,2]
[330430301,1719389432796,-500.0,0.00016438,2]
[330430302,1719389432806,-500.0,0.00016438,2]
[330430303,1719389432815,-3501.66,0.00016438,2]
[330430304,1719389432824,-500.0,0.00016438,2]
[330430305,1719389432833,-516.44507626,0.00016438,2]
[330430306,1719389432842,-500.0,0.00016438,2]
[330430307,1719389432851,-500.0,0.00016438,2]
[330430308,1719389432860,-500.0,0.00016438,2]
[330430309,1719389432869,-500.0,0.00016438,2]
[330430310,1719389432878,-500.0,0.00016438,2]
[330430311,1719389432887,-500.0,0.00016438,2]
[330430312,1719389432896,-820.62,0.00016438,2]
[330430313,1719389432906,-500.0,0.00016438,2]
[330430314,1719389432916,-500.0,0.00016438,2]
[330430315,1719389432925,-500.0,0.00016438,2]
[330430316,1719389432937,-500.0,0.00016438,2]
[330430317,1719389432947,-1174.8,0.00016438,2]
[330430318,1719389432956,-500.0,0.00016438,2]
[330430319,1719389432965,-1759.28,0.00016438,2]
[330430320,1719389432974,-1759.28,0.00016438,2]
[330430321,1719389432983,-1759.28,0.00016438,2]
[330430322,1719389432992,-1759.28,0.00016438,2]
[330430323,1719389433001,-1759.28,0.00016438,2]
[330430324,1719389433011,-500.0,0.00016438,2]
[330430325,1719389433022,-500.0,0.00016438,2]
[330430326,1719389433031,-510.01,0.00016438,2]
[330430327,1719389433040,-500.0,0.00016438,2]
[330430328,1719389433049,-500.0,0.00016438,2]
[330430329,1719389433060,-953.27,0.00016438,2]
[330430330,1719389433073,-976.64,0.00016438,2]
[330430331,1719389433086,-500.0,0.00016438,2]
[330430332,1719389433099,-500.0,0.00016438,2]
[330430333,1719389433111,-500.0,0.00016438,2]
[330430334,1719389433122,-500.0,0.00016438,2]
[330430335,1719389433132,-1325.67,0.00016438,2]
[330430336,1719389433145,-500.0,0.00016438,2]
[330430337,1719389433157,-500.0,0.00016438,2]
[330430338,1719389433169,-892.06,0.00016438,2]
[330430339,1719389433182,-1423.91,0.00016438,2]
[330430340,1719389433195,-500.0,0.00016438,2]
[330430341,1719389433207,-910.8,0.00016438,2]
[330430342,1719389433220,-503.85,0.00016438,2]
[330430343,1719389433233,-500.0,0.00016438,2]
[330430344,1719389433245,-500.0,0.00016438,2]
[330430345,1719389433257,-133.88595791,0.00016438,2]
[330430559,1719390638002,-876.0,0.00016379,2]
[330430560,1719390638011,-122.56089,0.00016437,2]
[330430698,1719391460121,-229.0,0.00014999,2]
[330430699,1719391460141,-25833.61357294,0.00015,2]
[330430700,1719391460161,-1102.94117698,0.00015,2]
[330430701,1719391460181,-1005.2631448,0.00015393,2]
[330430702,1719391460349,-293.67311745,0.00015915,2]
[330430703,1719391460372,-620.00000005,0.00015916,2]
[330430704,1719391460394,-1000.0,0.00016,5]
[330430705,1719391460414,-1626.7941959,0.00016173,2]
[330430706,1719391460435,-813.86636394,0.00016174,2]
[330430707,1719391460457,-153.0,0.000162,2]
[330430708,1719391460481,-806.89434629,0.00016273,2]
[330430709,1719391460502,-767.39134561,0.00016275,2]
[330430710,1719391460522,-154.83742071,0.00016278,2]
[330430711,1719391460543,-164.23980904,0.00016279,2]
[330430712,1719391460564,-153.0,0.000163,2]
[330430713,1719391460584,-154.83742071,0.00016368,2]
[330430714,1719391460604,-876.0,0.00016379,2]
[330430715,1719391460626,-153.6228763,0.000164,2]
[330430716,1719391460649,-153.0,0.000164,2]
[330430717,1719391460670,-3767.28917554,0.00016437,2]
[330430718,1719391460691,-1000.0,0.00016437,2]
[330430719,1719391460712,-500.0,0.00016438,2]
[330430720,1719391460737,-557.01829942,0.00016438,2]
[330430721,1719391460759,-11231.38,0.00016438,2]
[330430722,1719391460781,-500.0,0.00016438,2]
[330430723,1719391460802,-500.0,0.00016438,2]
[330430724,1719391460823,-183.06602464,0.00016438,2]
[330430725,1719391460845,-500.0,0.00016438,2]
[330430726,1719391460868,-500.0,0.00016438,2]
[330430727,1719391460888,-500.0,0.00016438,2]
[330430728,1719391460909,-588.12193583,0.00016438,2]
[330430729,1719391460930,-500.0,0.00016438,2]
[330430730,1719391460950,-913.55,0.00016438,2]
[330430731,1719391460970,-500.0,0.00016438,2]
[330430732,1719391460990,-537.97778533,0.00016438,2]
[330430733,1719391461011,-621.24662835,0.00016438,2]
[330430734,1719391461030,-500.0,0.00016438,2]
[330430735,1719391461051,-500.0,0.00016438,2]
[330430736,1719391461071,-500.0,0.00016438,2]
[330430737,1719391461092,-500.0,0.00016438,2]
[330430738,1719391461112,-500.0,0.00016438,2]
[330430739,1719391461133,-530.45,0.00016438,2]
[330430740,1719391461153,-500.0,0.00016438,2]
[330430741,1719391461174,-740.68,0.00016438,2]
[330430742,1719391461194,-572.34002122,0.00016438,2]
[330430743,1719391461214,-500.0,0.00016438,2]
[330430744,1719391461235,-654.55,0.00016438,2]
[330430745,1719391461254,-526.53,0.00016438,2]
[330430746,1719391461275,-2924.67,0.00016438,2]
[330430747,1719391461303,-291.64533433,0.00016438,2]
[330430748,1719391461323,-740.26,0.00016438,2]
[330430749,1719391461345,-23.25000462,0.00016438,2]
[330430750,1719391523472,179.54081427,9.999e-05,2]
[330430762,1719391832299,-876.0,0.00016379,2]
[330430763,1719391832308,-476.70207437,0.00016436,2]
[330430764,1719391832319,-523.29792563,0.00016436,2]
[330430765,1719391832328,-112.4969532,0.00016438,2]
[330430766,1719391832343,-387.5030468,0.00016438,2]
[330430767,1719391832352,-500.0,0.00016438,2]
[330430768,1719391832361,-712.81351989,0.00016438,2]